fUSD/lending_fUSD_20250607
["ID","MTS","AMOUNT","RATE_DAILY","PERIOD"]
[364831139,1749263462539,-480.0,0.00027397,5]
[364831140,1749263462549,-499.96805543,0.00027397,5]
[364831141,1749263462558,-478.32592417,0.00027397,5]
[364831142,1749263462569,-491.5708486,0.00027397,5]
[364831143,1749263462579,-151.0,0.00027397,7]
[364831144,1749263462589,-151.0,0.00027397,7]
[364831145,1749263462599,-487.93759293,0.00027397,5]
[364831146,1749263462608,-500.0,0.00027397,2]
[364831147,1749263462618,-151.0,0.00027397,7]
[364831148,1749263462628,-151.0,0.00027397,7]
[364831149,1749263462637,-500.0,0.00027397,2]
[364831150,1749263462647,-500.0,0.00027397,2]
[364831151,1749263462657,-151.0,0.00027397,7]
[364831152,1749263462666,-500.0,0.00027397,2]
[364831153,1749263462676,-500.0,0.00027397,2]
[364831154,1749263462686,-488.61625459,0.00027397,5]
[364831155,1749263462695,-500.0,0.00027397,2]
[364831156,1749263462705,-500.0,0.00027397,5]
[364831157,1749263462715,-500.0,0.00027397,2]
[364831158,1749263462725,-500.0,0.00027397,2]
[364831159,1749263462734,-500.0,0.00027397,5]
[364831160,1749263462748,-502.64900214,0.00027397,2]
[364831161,1749263462757,-500.0,0.00027397,5]
[364831162,1749263462766,-500.0,0.00027397,5]
[364831163,1749263462776,-500.0,0.00027397,5]
[364831164,1749263462787,-500.0,0.00027397,5]
[364831165,1749263462797,-500.0,0.00027397,5]
[364831166,1749263462806,-858.592124,0.00027397,7]
[364831167,1749263462816,-500.0,0.00027397,5]
[364831168,1749263462827,-500.0,0.00027397,5]
[364831169,1749263462837,-858.592124,0.00027397,7]
[364831170,1749263462847,-500.0,0.00027397,5]
[364831171,1749263462856,-500.0,0.00027397,5]
[364831172,1749263462867,-858.592124,0.00027397,7]
[364831173,1749263462877,-500.0,0.00027397,5]
[364831174,1749263462886,-858.592124,0.00027397,7]
[364831175,1749263462896,-500.0,0.00027397,5]
[364831176,1749263462906,-500.0,0.00027397,5]
[364831177,1749263462916,-858.592124,0.00027397,7]
[364831178,1749263462926,-500.0,0.00027397,5]
[364831179,1749263462936,-500.0,0.00027397,5]
[364831180,1749263462946,-500.0,0.00027397,5]
[364831181,1749263462955,-500.0,0.00027397,5]
[364831182,1749263462965,-480.0,0.00027397,5]
[364831183,1749263462974,-858.592124,0.00027397,7]
[364831184,1749263462984,-505.58,0.00027397,5]
[364831185,1749263462994,-858.592124,0.00027397,7]
[364831186,1749263463004,-858.592124,0.00027397,7]
[364831187,1749263463014,-858.592124,0.00027397,7]
[364831188,1749263463024,-858.592126,0.00027397,7]
[364831189,1749263463033,-183.5396126,0.00027397,5]
[364831190,1749263463601,-304.29755538,0.00027397,5]
[364831191,1749263463611,-97.74689148,0.00027397,5]
[364831192,1749263463718,-253.20986773,0.00027397,5]
[364831193,1749263463731,-150.74788674,0.00027397,5]
[364831194,1749263463741,-237.41417537,0.00027397,5]
[364831195,1749263463753,-480.0,0.00027397,5]
[364831196,1749263463763,-480.0,0.00027397,5]
[364831197,1749263463772,-480.0,0.00027397,5]
[364831198,1749263463781,-140.83793789,0.00027397,7]
[364831199,1749263464199,-5914.15,0.00024256,2]
[364831200,1749263464209,-1000.0,0.00024658,2]
[364831201,1749263464219,-1793.31571857,0.00026387,2]
[364831202,1749263464229,-10.77900411,0.00027397,7]
[364831203,1749263464239,-500.0,0.00027397,5]
[364831204,1749263464248,-500.0,0.00027397,5]
[364831205,1749263464258,-500.0,0.00027397,5]
[364831206,1749263464267,-500.0,0.00027397,5]
[364831207,1749263464277,-180.27429648,0.00027397,5]
[364831208,1749263464287,-480.0,0.00027397,5]
[364831209,1749263464296,-495.27479184,0.00027397,5]
[364831210,1749263464305,-480.0,0.00027397,5]
[364831211,1749263464315,-493.54052618,0.00027397,5]
[364831212,1749263464325,-489.68581883,0.00027397,5]
[364831213,1749263464334,-486.13879497,0.00027397,5]
[364831214,1749263464343,-480.0,0.00027397,5]
[364831215,1749263464353,-484.70254304,0.00027397,5]
[364831216,1749263464363,-492.93793836,0.00027397,5]
[364831217,1749263464372,-483.65729563,0.00027397,5]
[364831218,1749263464382,-480.0,0.00027397,5]
[364831219,1749263464391,-480.0,0.00027397,5]
[364831220,1749263464401,-480.0,0.00027397,5]
[364831221,1749263464412,-480.0,0.00027397,5]
[364831222,1749263464422,-505.36083968,0.00027397,5]
[364831223,1749263464432,-480.0,0.00027397,5]
[364831224,1749263464441,-480.0,0.00027397,5]
[364831225,1749263464450,-480.0,0.00027397,5]
[364831226,1749263464460,-480.0,0.00027397,5]
[364831227,1749263464469,-929.79,0.00027397,5]
[364831228,1749263464479,-480.0,0.00027397,5]
[364831229,1749263464488,-642.18,0.00027397,5]
[364831230,1749263464497,-508.9064521,0.00027397,5]
[364831231,1749263464507,-480.0,0.00027397,5]
[364831232,1749263464517,-480.0,0.00027397,5]
[364831233,1749263464527,-480.0,0.00027397,5]
[364831234,1749263464536,-494.95686996,0.00027397,5]
[364831235,1749263464546,-480.0,0.00027397,5]
[364831236,1749263464555,-480.0,0.00027397,5]
[364831237,1749263464570,-482.43779893,0.00027397,5]
[364831238,1749263464579,-480.0,0.00027397,5]
[364831239,1749263464589,-480.0,0.00027397,5]
[364831240,1749263464598,-480.0,0.00027397,5]
[364831241,1749263464608,-151.0,0.00027397,7]
[364831242,1749263464617,-151.0,0.00027397,7]
[364831243,1749263464627,-480.0,0.00027397,5]
[364831244,1749263464636,-151.0,0.00027397,7]
[364831245,1749263464646,-151.0,0.00027397,7]
[364831246,1749263464655,-483.0926414,0.00027397,5]
[364831247,1749263464665,-151.0,0.00027397,7]
[364831248,1749263464675,-480.0,0.00027397,5]
[364831249,1749263464684,-151.0,0.00027397,7]
[364831250,1749263464693,-480.0,0.00027397,5]
[364831251,1749263464703,-151.0,0.00027397,7]
[364831252,1749263464714,-151.0,0.00027397,7]
[364831253,1749263464723,-160.879096,0.00027397,7]
[364831254,1749263464733,-480.0,0.00027397,5]
[364831255,1749263464744,-509.8,0.00027397,5]
[364831256,1749263464754,-480.0,0.00027397,5]
[364831257,1749263464764,-1954.69,0.00027397,5]
[364831258,1749263464773,-469.52122212,0.00027397,5]
[364831259,1749263464783,-1221.810892,0.00027397,7]
[364831260,1749263464793,-1221.810892,0.00027397,7]
[364831261,1749263464803,-1221.810892,0.00027397,7]
[364831262,1749263464812,-427.29804315,0.00027397,5]
[364831263,1749263464822,-480.0,0.00027397,5]
[364831264,1749263464831,-1221.810892,0.00027397,7]
[364831265,1749263464841,-1221.810892,0.00027397,7]
[364831266,1749263464850,-480.0,0.00027397,5]
[364831267,1749263464860,-1221.810892,0.00027397,7]
[364831268,1749263464870,-480.0,0.00027397,5]
[364831269,1749263464879,-433.47910582,0.00027397,5]
[364831270,1749263464889,-1221.810892,0.00027397,7]
[364831271,1749263464899,-1221.810892,0.00027397,7]
[364831272,1749263464909,-480.0,0.00027397,5]
[364831273,1749263464919,-1221.810892,0.00027397,7]
[364831274,1749263464929,-1221.810884,0.00027397,7]
[364831275,1749263464939,-360.0,0.00027397,5]
[364831276,1749263464949,-480.0,0.00027397,5]
[364831277,1749263464959,-474.83599662,0.00027397,5]
[364831278,1749263464969,-388.757715,0.00027397,28]
[364831279,1749263464979,-480.0,0.00027397,5]
[364831280,1749263464989,-480.0,0.00027397,5]
[364831281,1749263464999,-480.0,0.00027397,5]
[364831282,1749263465008,-480.0,0.00027397,5]
[364831283,1749263465018,-480.0,0.00027397,5]
[364831284,1749263465042,-496.77805165,0.00027397,5]
[364831285,1749263465051,-480.0,0.00027397,5]
[364831286,1749263465061,-480.0,0.00027397,5]
[364831287,1749263465070,-480.0,0.00027397,5]
[364831288,1749263465081,-480.0,0.00027397,5]
[364831289,1749263465090,-509.47112471,0.00027397,5]
[364831290,1749263465410,-253.483761,0.00027397,7]
[364831291,1749263465421,-253.483761,0.00027397,7]
[364831292,1749263465430,-253.483761,0.00027397,7]
[364831293,1749263465440,-253.483761,0.00027397,7]
[364831294,1749263465450,-480.0,0.00027397,5]
[364831295,1749263465460,-618.47,0.00027397,5]
[364831296,1749263465471,-480.0,0.00027397,5]
[364831297,1749263465480,-253.483761,0.00027397,7]
[364831298,1749263465489,-480.0,0.00027397,5]
[364831299,1749263465499,-498.04423124,0.00027397,5]
[364831300,1749263465509,-480.0,0.00027397,5]
[364831301,1749263465519,-253.483761,0.00027397,7]
[364831302,1749263465535,-253.483761,0.00027397,7]
[364831303,1749263465545,-253.483761,0.00027397,7]
[364831304,1749263465555,-253.483761,0.00027397,7]
[364831305,1749263465566,-480.0,0.00027397,5]
[364831306,1749263465576,-253.483756,0.00027397,7]
[364831307,1749263465586,-480.0,0.00027397,5]
[364831308,1749263465597,-480.0,0.00027397,5]
[364831309,1749263465608,-480.0,0.00027397,5]
[364831310,1749263465618,-1163.74,0.00027397,5]
[364831311,1749263465628,-248.132385,0.00027397,7]
[364831312,1749263465639,-480.0,0.00027397,5]
[364831313,1749263465649,-480.0,0.00027397,5]
[364831314,1749263465660,-480.0,0.00027397,5]
[364831315,1749263465671,-480.0,0.00027397,5]
[364831316,1749263465683,-480.0,0.00027397,5]
[364831317,1749263465694,-480.0,0.00027397,5]
[364831318,1749263465705,-807.84,0.00027397,5]
[364831319,1749263465715,-466.81533169,0.00027397,5]
[364831320,1749263465726,-480.0,0.00027397,5]
[364831321,1749263465737,-480.0,0.00027397,5]
[364831322,1749263465753,-480.0,0.00027397,5]
[364831323,1749263465764,-480.0,0.00027397,5]
[364831324,1749263465774,-505.40257588,0.00027397,5]
[364831325,1749263465784,-480.0,0.00027397,5]
[364831326,1749263465794,-496.12803623,0.00027397,5]
[364831327,1749263465806,-480.0,0.00027397,5]
[364831328,1749263465816,-480.0,0.00027397,5]
[364831329,1749263465826,-480.0,0.00027397,5]
[364831330,1749263465838,-722.49,0.00027397,5]
[364831331,1749263465848,-490.8626679,0.00027397,5]
[364831332,1749263465858,-480.0,0.00027397,5]
[364831333,1749263465868,-610.98,0.00027397,5]
[364831334,1749263465879,-486.16993969,0.00027397,5]
[364831335,1749263465890,-534.07,0.00027397,5]
[364831336,1749263465900,-502.66103318,0.00027397,5]
[364831337,1749263465911,-480.0,0.00027397,5]
[364831338,1749263465921,-480.0,0.00027397,5]
[364831339,1749263465931,-1046.98,0.00027397,5]
[364831340,1749263465941,-431.3303936,0.00027397,5]
[364831341,1749263465951,-487.73958389,0.00027397,5]
[364831342,1749263465962,-480.0,0.00027397,5]
[364831343,1749263465972,-480.0,0.00027397,5]
[364831344,1749263465982,-548.11,0.00027397,5]
[364831345,1749263465992,-1423.16,0.00027397,5]
[364831346,1749263466002,-480.0,0.00027397,2]
[364831347,1749263466012,-480.0,0.00027397,5]
[364831348,1749263466022,-218.795101,0.00027397,7]
[364831349,1749263466033,-218.795101,0.00027397,7]
[364831350,1749263466042,-218.795101,0.00027397,7]
[364831351,1749263466052,-218.795101,0.00027397,7]
[364831352,1749263466063,-218.795101,0.00027397,7]
[364831353,1749263466073,-480.0,0.00027397,5]
[364831354,1749263466083,-480.0,0.00027397,5]
[364831355,1749263466093,-480.0,0.00027397,5]
[364831356,1749263466103,-480.0,0.00027397,5]
[364831357,1749263466113,-218.795101,0.00027397,7]
[364831358,1749263466123,-218.795101,0.00027397,7]
[364831359,1749263466133,-218.795101,0.00027397,7]
[364831360,1749263466144,-1005.25535,0.00027397,7]
[364831361,1749263466154,-480.0,0.00027397,5]
[364831362,1749263466164,-218.795101,0.00027397,7]
[364831363,1749263466175,-1005.25535,0.00027397,7]
[364831364,1749263466186,-218.795099,0.00027397,7]
[364831365,1749263466196,-1005.25535,0.00027397,7]
[364831366,1749263466207,-151.0,0.00027397,7]
[364831367,1749263466218,-480.0,0.00027397,5]
[364831368,1749263466229,-480.0,0.00027397,5]
[364831369,1749263466239,-151.0,0.00027397,7]
[364831370,1749263466249,-1005.25535,0.00027397,7]
[364831371,1749263466259,-658.07,0.00027397,5]
[364831372,1749263466270,-151.0,0.00027397,7]
[364831373,1749263466280,-882.53,0.00027397,5]
[364831374,1749263466290,-1005.25535,0.00027397,7]
[364831375,1749263466300,-151.0,0.00027397,7]
[364831376,1749263466310,-151.0,0.00027397,7]
[364831377,1749263466321,-480.0,0.00027397,5]
[364831378,1749263466331,-1005.25535,0.00027397,7]
[364831379,1749263466340,-480.0,0.00027397,5]
[364831380,1749263466350,-151.0,0.00027397,7]
[364831381,1749263466360,-151.0,0.00027397,7]
[364831382,1749263466370,-480.0,0.00027397,5]
[364831383,1749263466380,-1005.25535,0.00027397,7]
[364831384,1749263466390,-151.0,0.00027397,7]
[364831385,1749263466400,-1005.25535,0.00027397,7]
[364831386,1749263466410,-151.0,0.00027397,7]
[364831387,1749263466419,-1005.25535,0.00027397,7]
[364831388,1749263466429,-1005.255356,0.00027397,7]
[364831389,1749263466440,-480.0,0.00027397,5]
[364831390,1749263466450,-205.907663,0.00027397,7]
[364831391,1749263466459,-920.88,0.00027397,2]
[364831392,1749263466470,-920.88,0.00027397,2]
[364831393,1749263466480,-920.88,0.00027397,2]
[364831394,1749263466494,-624.11,0.00027397,5]
[364831395,1749263466503,-480.0,0.00027397,5]
[364831396,1749263466513,-500.0,0.00027397,2]
[364831397,1749263466523,-920.88,0.00027397,2]
[364831398,1749263466533,-920.88,0.00027397,2]
[364831399,1749263466543,-920.88,0.00027397,2]
[364831400,1749263466553,-920.88,0.00027397,2]
[364831401,1749263466563,-500.0,0.00027397,2]
[364831402,1749263466573,-920.88,0.00027397,2]
[364831403,1749263466582,-920.88,0.00027397,2]
[364831404,1749263466592,-920.88,0.00027397,2]
[364831405,1749263466603,-920.88,0.00027397,2]
[364831406,1749263466612,-920.88,0.00027397,2]
[364831407,1749263466622,-488.42832724,0.00027397,5]
[364831408,1749263466632,-920.88,0.00027397,2]
[364831409,1749263466642,-920.88,0.00027397,2]
[364831410,1749263466652,-920.88,0.00027397,2]
[364831411,1749263466662,-736.64,0.00027397,5]
[364831412,1749263466671,-920.88,0.00027397,2]
[364831413,1749263466682,-480.0,0.00027397,5]
[364831414,1749263466693,-920.88,0.00027397,2]
[364831415,1749263466703,-920.88,0.00027397,2]
[364831416,1749263466713,-480.0,0.00027397,5]
[364831417,1749263466723,-480.0,0.00027397,5]
[364831418,1749263466733,-965.47,0.00027397,5]
[364831419,1749263466744,-1490.709538,0.00027397,7]
[364831420,1749263466756,-151.0,0.00027397,7]
[364831421,1749263466765,-1490.709538,0.00027397,7]
[364831422,1749263466776,-160.353024,0.00027397,7]
[364831423,1749263466787,-1490.709538,0.00027397,7]
[364831424,1749263466797,-545.14,0.00027397,5]
[364831425,1749263466806,-1490.709538,0.00027397,7]
[364831426,1749263466815,-480.0,0.00027397,5]
[364831427,1749263466826,-2000.0,0.00027397,5]
[364831428,1749263466836,-1490.709538,0.00027397,7]
[364831429,1749263466845,-480.0,0.00027397,5]
[364831430,1749263466854,-480.0,0.00027397,5]
[364831431,1749263466864,-696.89,0.00027397,5]
[364831432,1749263466874,-480.0,0.00027397,5]
[364831433,1749263466884,-1490.709538,0.00027397,7]
[364831434,1749263466894,-480.0,0.00027397,5]
[364831435,1749263466904,-1490.709538,0.00027397,7]
[364831436,1749263466913,-480.0,0.00027397,5]
[364831437,1749263466924,-1490.709538,0.00027397,7]
[364831438,1749263466936,-1490.709538,0.00027397,7]
[364831439,1749263466947,-1490.709535,0.00027397,7]
[364831440,1749263466958,-307.314938,0.00027397,7]
[364831441,1749263466970,-307.314938,0.00027397,7]
[364831442,1749263466979,-1137.84,0.00027397,5]
[364831443,1749263466989,-495.52185997,0.00027397,5]
[364831444,1749263466999,-307.314938,0.00027397,7]
[364831445,1749263467010,-307.314938,0.00027397,7]
[364831446,1749263467020,-903.48,0.00027397,5]
[364831447,1749263467032,-480.0,0.00027397,5]
[364831448,1749263467041,-480.0,0.00027397,5]
[364831449,1749263467051,-480.0,0.00027397,5]
[364831450,1749263467060,-495.78,0.00027397,5]
[364831451,1749263467070,-480.0,0.00027397,5]
[364831452,1749263467079,-391.51288326,0.00027397,5]
[364831453,1749263467089,-307.314938,0.00027397,7]
[364831454,1749263467099,-307.314938,0.00027397,7]
[364831455,1749263467108,-307.314938,0.00027397,7]
[364831456,1749263467118,-307.314931,0.00027397,7]
[364831457,1749263467128,-480.0,0.00027397,5]
[364831458,1749263467144,-480.0,0.00027397,5]
[364831459,1749263467165,-172.32450229,0.00027397,5]
[364831460,1749263467181,-480.0,0.00027397,5]
[364831461,1749263467198,-477.12670696,0.00027397,5]
[364831462,1749263467216,-480.0,0.00027397,5]
[364831463,1749263467236,-480.0,0.00027397,5]
[364831464,1749263467258,-480.0,0.00027397,5]
[364831465,1749263467273,-480.0,0.00027397,5]
[364831466,1749263467291,-1323.94,0.00027397,5]
[364831467,1749263467311,-210.34723874,0.00027397,5]
[364831468,1749263467330,-1026.76,0.00027397,5]
[364831469,1749263467349,-500.0,0.00027397,5]
[364831470,1749263467368,-480.0,0.00027397,5]
[364831471,1749263467385,-500.0,0.00027397,5]
[364831472,1749263467403,-480.0,0.00027397,5]
[364831473,1749263467421,-500.0,0.00027397,5]
[364831474,1749263467439,-515.22003817,0.00027397,5]
[364831475,1749263467457,-492.2470995,0.00027397,5]
[364831476,1749263467474,-480.0,0.00027397,5]
[364831477,1749263467487,-480.0,0.00027397,5]
[364831478,1749263467506,-480.0,0.00027397,5]
[364831479,1749263467520,-480.0,0.00027397,5]
[364831480,1749263467533,-480.0,0.00027397,5]
[364831481,1749263467552,-480.0,0.00027397,5]
[364831482,1749263467568,-500.0,0.00027397,5]
[364831483,1749263467580,-500.0,0.00027397,5]
[364831484,1749263467594,-500.0,0.00027397,5]
[364831485,1749263467609,-480.0,0.00027397,5]
[364831486,1749263467623,-509.52110975,0.00027397,5]
[364831487,1749263467638,-480.0,0.00027397,5]
[364831488,1749263467653,-480.0,0.00027397,5]
[364831489,1749263467677,-491.9551073,0.00027397,5]
[364831490,1749263467692,-480.0,0.00027397,5]
[364831491,1749263467707,-536.21952107,0.00027397,5]
[364831492,1749263467723,-480.0,0.00027397,5]
[364831493,1749263467739,-480.0,0.00027397,5]
[364831494,1749263467757,-480.0,0.00027397,5]
[364831495,1749263467772,-1037.35,0.00027397,5]
[364831496,1749263467790,-480.0,0.00027397,5]
[364831497,1749263467807,-492.26232599,0.00027397,5]
[364831498,1749263467823,-482.56222229,0.00027397,5]
[364831499,1749263467838,-480.0,0.00027397,5]
[364831500,1749263467853,-480.0,0.00027397,5]
[364831501,1749263467868,-480.0,0.00027397,5]
[364831502,1749263467883,-480.0,0.00027397,5]
[364831503,1749263467896,-466.2013567,0.00027397,5]
[364831504,1749263467912,-1165.67,0.00027397,5]
[364831505,1749263467927,-480.0,0.00027397,5]
[364831506,1749263467942,-713.0,0.00027397,5]
[364831507,1749263467957,-480.0,0.00027397,5]
[364831508,1749263467973,-480.0,0.00027397,5]
[364831509,1749263467989,-480.0,0.00027397,5]
[364831510,1749263468004,-480.0,0.00027397,5]
[364831511,1749263468018,-480.0,0.00027397,5]
[364831512,1749263468033,-539.442297,0.00027397,7]
[364831513,1749263468049,-539.442297,0.00027397,7]
[364831514,1749263468065,-539.442297,0.00027397,7]
[364831515,1749263468082,-492.15611086,0.00027397,5]
[364831516,1749263468096,-539.442297,0.00027397,7]
[364831517,1749263468111,-430.2542926,0.00027397,5]
[364831518,1749263468125,-480.0,0.00027397,5]
[364831519,1749263468142,-554.27,0.00027397,5]
[364831520,1749263468160,-480.0,0.00027397,5]
[364831521,1749263468175,-539.442297,0.00027397,7]
[364831522,1749263468190,-539.442297,0.00027397,7]
[364831523,1749263468205,-539.442297,0.00027397,7]
[364831524,1749263468219,-480.0,0.00027397,5]
[364831525,1749263468234,-539.442305,0.00027397,7]
[364831526,1749263468249,-480.0,0.00027397,5]
[364831527,1749263468264,-500.0,0.00027397,5]
[364831528,1749263468279,-500.0,0.00027397,5]
[364831529,1749263468294,-500.0,0.00027397,5]
[364831530,1749263468309,-480.0,0.00027397,5]
[364831531,1749263468324,-500.0,0.00027397,5]
[364831532,1749263468338,-500.0,0.00027397,5]
[364831533,1749263468353,-500.0,0.00027397,5]
[364831534,1749263468369,-500.0,0.00027397,5]
[364831535,1749263468383,-500.0,0.00027397,5]
[364831536,1749263468398,-480.0,0.00027397,5]
[364831537,1749263468412,-480.0,0.00027397,5]
[364831538,1749263468427,-480.0,0.00027397,5]
[364831539,1749263468441,-737.61,0.00027397,5]
[364831540,1749263468456,-1174.57,0.00027397,5]
[364831541,1749263468470,-427.3457674,0.00027397,5]
[364831542,1749263468485,-460.00088065,0.00027397,5]
[364831543,1749263468499,-480.0,0.00027397,5]
[364831544,1749263468514,-480.0,0.00027397,5]
[364831545,1749263468527,-480.0,0.00027397,5]
[364831546,1749263468542,-426.06823034,0.00027397,5]
[364831547,1749263468556,-480.0,0.00027397,5]
[364831548,1749263468569,-480.0,0.00027397,5]
[364831549,1749263468585,-163.67194531,0.00027397,5]
[364831550,1749263468600,-491.63697672,0.00027397,5]
[364831551,1749263468614,-480.0,0.00027397,5]
[364831552,1749263468629,-495.53230249,0.00027397,5]
[364831553,1749263468645,-480.0,0.00027397,5]
[364831554,1749263468661,-480.0,0.00027397,5]
[364831555,1749263468676,-480.0,0.00027397,5]
[364831556,1749263468691,-368.89279965,0.00027397,5]
[364831557,1749263468705,-480.0,0.00027397,5]
[364831558,1749263468721,-450.37785265,0.00027397,5]
[364831559,1749263468737,-480.0,0.00027397,5]
[364831560,1749263468754,-611.81,0.00027397,5]
[364831561,1749263468768,-247.57441204,0.00027397,5]
[364831562,1749263468783,-480.0,0.00027397,5]
[364831563,1749263468798,-500.0,0.00027397,5]
[364831564,1749263468812,-500.0,0.00027397,5]
[364831565,1749263468827,-500.0,0.00027397,5]
[364831566,1749263468842,-480.0,0.00027397,5]
[364831567,1749263468857,-500.0,0.00027397,5]
[364831568,1749263468872,-500.0,0.00027397,5]
[364831569,1749263468887,-500.0,0.00027397,5]
[364831570,1749263468902,-424.14717833,0.00027397,5]
[364831571,1749263468916,-500.0,0.00027397,5]
[364831572,1749263468932,-835.68,0.00027397,5]
[364831573,1749263468946,-500.0,0.00027397,5]
[364831574,1749263468961,-500.0,0.00027397,5]
[364831575,1749263468978,-480.0,0.00027397,5]
[364831576,1749263468993,-500.0,0.00027397,5]
[364831577,1749263469006,-480.0,0.00027397,5]
[364831578,1749263469016,-500.0,0.00027397,5]
[364831579,1749263469026,-500.0,0.00027397,5]
[364831580,1749263469036,-500.0,0.00027397,5]
[364831581,1749263469045,-500.0,0.00027397,5]
[364831582,1749263469056,-500.0,0.00027397,5]
[364831583,1749263469066,-480.0,0.00027397,5]
[364831584,1749263469076,-500.0,0.00027397,5]
[364831585,1749263469085,-330.64541199,0.00027397,5]
[364831586,1749263469094,-480.0,0.00027397,5]
[364831587,1749263469104,-480.0,0.00027397,5]
[364831588,1749263469114,-984.78,0.00027397,5]
[364831589,1749263469124,-813.01,0.00027397,5]
[364831590,1749263469134,-427.63098731,0.00027397,5]
[364831591,1749263469144,-480.0,0.00027397,5]
[364831592,1749263469154,-487.01657088,0.00027397,5]
[364831593,1749263469165,-570.08323876,0.00027397,5]
[364831594,1749263469175,-480.0,0.00027397,5]
[364831595,1749263469185,-189.229148,0.00027397,7]
[364831596,1749263469195,-189.229148,0.00027397,7]
[364831597,1749263469205,-480.0,0.00027397,5]
[364831598,1749263469217,-189.229148,0.00027397,7]
[364831599,1749263469227,-1327.04,0.00027397,5]
[364831600,1749263469237,-189.229148,0.00027397,7]
[364831601,1749263469247,-480.0,0.00027397,5]
[364831602,1749263469256,-480.0,0.00027397,5]
[364831603,1749263469267,-189.229148,0.00027397,7]
[364831604,1749263469277,-480.0,0.00027397,5]
[364831605,1749263469287,-592.62,0.00027397,5]
[364831606,1749263469298,-480.0,0.00027397,5]
[364831607,1749263469309,-189.229148,0.00027397,7]
[364831608,1749263469319,-480.0,0.00027397,5]
[364831609,1749263469329,-189.229148,0.00027397,7]
[364831610,1749263469340,-189.229148,0.00027397,7]
[364831611,1749263469350,-480.0,0.00027397,5]
[364831612,1749263469368,-189.229148,0.00027397,7]
[364831613,1749263469379,-189.229146,0.00027397,7]
[364831614,1749263469389,-480.79945134,0.00027397,5]
[364831615,1749263469399,-501.50488483,0.00027397,5]
[364831616,1749263469409,-480.0,0.00027397,5]
[364831617,1749263469418,-480.0,0.00027397,5]
[364831618,1749263469428,-500.00740803,0.00027397,5]
[364831619,1749263469437,-480.0,0.00027397,5]
[364831620,1749263469448,-480.0,0.00027397,5]
[364831621,1749263469458,-2016.63,0.00027397,5]
[364831622,1749263469470,-480.0,0.00027397,5]
[364831623,1749263469480,-1379.57,0.00027397,5]
[364831624,1749263469490,-480.0,0.00027397,5]
[364831625,1749263469500,-480.0,0.00027397,5]
[364831626,1749263469510,-364.48152111,0.00027397,5]
[364831627,1749263469520,-480.0,0.00027397,5]
[364831628,1749263469530,-480.0,0.00027397,5]
[364831629,1749263469539,-480.0,0.00027397,5]
[364831630,1749263469549,-480.0,0.00027397,5]
[364831631,1749263470112,-787.2,0.00027397,5]
[364831632,1749263470138,-480.0,0.00027397,5]
[364831633,1749263470163,-480.0,0.00027397,5]
[364831634,1749263470186,-480.0,0.00027397,5]
[364831635,1749263470200,-583.54533055,0.00027397,5]
[364831636,1749263470209,-480.0,0.00027397,5]
[364831637,1749263470220,-325.5077297,0.00027397,5]
[364831638,1749263470229,-480.0,0.00027397,5]